bitfinex/quotes_BTCUSD_20250803
["timestamp","ask_amount","ask_price","bid_price","bid_amount"]
[1754233284301,0.07738,113970.0,113960.0,0.67961011]
[1754233284718,0.07538,113970.0,113960.0,0.67961011]
[1754233284891,0.08911663,113970.0,113960.0,0.68061011]
[1754233285101,0.09111663,113970.0,113960.0,0.67561011]
[1754233285534,0.07738,113970.0,113960.0,0.67561011]
[1754233287722,0.002,113970.0,113960.0,0.68061011]
[1754233287860,0.002,113970.0,113960.0,0.74432011]
[1754233288285,0.002,113970.0,113960.0,0.06471]
[1754233288487,0.07534,113970.0,113960.0,0.68061011]
[1754233288908,0.07534,113970.0,113960.0,0.001]
[1754233289112,0.07738,113970.0,113960.0,0.001]
[1754233289324,0.07738,113970.0,113960.0,0.68061011]
[1754233289535,0.07738,113970.0,113960.0,0.67961011]
[1754233290190,0.07738,113970.0,113950.0,0.31288697]
[1754233290422,0.07418,113970.0,113950.0,0.31288697]
[1754233290635,0.07418,113970.0,113950.0,0.92878708]
[1754233291074,0.07418,113970.0,113950.0,0.16054413]
[1754233291075,3.872417,113960.0,113950.0,0.16054413]
[1754233291304,0.07538,113960.0,113950.0,0.00051713]
[1754233291994,0.07538,113960.0,113940.0,0.83683824]
[1754233292193,0.07538,113960.0,113940.0,0.160311]
[1754233292194,0.0032,113950.0,113940.0,0.160311]
[1754233292407,0.07538,113950.0,113940.0,0.13392]
[1754233292620,0.07538,113950.0,113940.0,0.81353011]
[1754233293521,0.07538,113950.0,113940.0,0.13392]
[1754233293743,3.869217,113940.0,113930.0,0.160752]
[1754233293962,0.07538,113940.0,113930.0,0.0004]
[1754233294396,0.41538,113940.0,113930.0,0.0004]
[1754233294611,0.44398538,113940.0,113930.0,0.0004]
[1754233294836,0.57818538,113940.0,113930.0,0.0004]
[1754233295053,4.44740238,113940.0,113930.0,0.0004]
[1754233295491,4.31320238,113940.0,113930.0,0.0004]
[1754233295728,4.31620238,113940.0,113930.0,0.0014]
[1754233295937,4.31620238,113940.0,113930.0,0.0004]
[1754233296151,4.33168251,113940.0,113930.0,0.0004]
[1754233296366,3.869217,113930.0,113920.0,0.66893285]
[1754233296602,0.2105,113940.0,113920.0,0.66093285]
[1754233296817,0.21054,113940.0,113930.0,0.60522285]
[1754233297038,0.005,113940.0,113930.0,0.60622285]
[1754233297243,0.14228,113940.0,113930.0,0.60622285]
[1754233297462,0.005,113940.0,113930.0,0.60622285]
[1754233297686,0.005,113940.0,113930.0,0.69485569]
[1754233297904,0.07381647,113960.0,113930.0,0.76456767]
[1754233298121,0.00047647,113960.0,113950.0,0.60522285]
[1754233298355,0.02700919,113960.0,113950.0,0.60522285]
[1754233298578,0.00047647,113960.0,113950.0,0.65493285]
[1754233299288,0.00047647,113960.0,113950.0,0.66093285]
[1754233299716,0.00147647,113960.0,113950.0,0.66093285]
[1754233299928,0.00417109,113970.0,113950.0,0.66292285]
[1754233300150,0.04285042,113970.0,113960.0,0.67593285]
[1754233300403,0.353739,113980.0,113960.0,0.81793285]
[1754233300577,0.175787,113980.0,113970.0,0.67593285]
[1754233300785,0.37014434,113980.0,113970.0,0.0728]
[1754233301686,0.39574499,113980.0,113970.0,0.0708]
[1754233302129,0.39574499,113980.0,113970.0,0.0678]
[1754233302753,0.39574499,113980.0,113970.0,0.0688]
[1754233303183,0.429089,113980.0,113970.0,0.0688]
[1754233303414,0.429089,113980.0,113970.0,0.0468]
[1754233303639,0.429089,113980.0,113970.0,0.0498]
[1754233303856,0.014739,113980.0,113970.0,0.0498]
[1754233304069,0.354739,113980.0,113970.0,0.0498]
[1754233304303,0.354739,113980.0,113970.0,0.0418]
[1754233306027,0.430089,113980.0,113970.0,0.00609]
[1754233306236,0.432099,113980.0,113970.0,0.00609]
[1754233306456,0.432099,113980.0,113970.0,0.00109]
[1754233306679,0.432099,113980.0,113970.0,0.07299]
[1754233307365,0.432099,113980.0,113970.0,0.67821285]
[1754233310530,0.432099,113980.0,113970.0,0.60522285]
[1754233311247,0.432099,113980.0,113960.0,0.25245884]
[1754233311481,0.07535,113970.0,113960.0,0.84968169]
[1754233311933,0.07736,113970.0,113960.0,0.11501884]
[1754233312160,0.07736,113970.0,113960.0,0.25237884]
[1754233313513,0.07736,113970.0,113960.0,0.24737884]
[1754233314195,0.07736,113970.0,113960.0,0.24837884]
[1754233314446,0.07736,113970.0,113960.0,0.24737884]
[1754233314693,0.07836,113970.0,113960.0,0.25137884]
[1754233315339,0.07836,113970.0,113960.0,0.14132]
[1754233315763,0.10696538,113970.0,113960.0,0.14124]
[1754233317572,0.34,113960.0,113950.0,0.13955934]
[1754233317783,0.34,113960.0,113950.0,0.1373654]
[1754233317994,0.41535,113960.0,113950.0,0.1373654]
[1754233318197,0.41736,113960.0,113950.0,0.1373654]
[1754233318484,0.41736,113960.0,113950.0,0.1293654]
[1754233318917,0.41736,113960.0,113950.0,0.1323654]
[1754233319129,0.41736,113960.0,113950.0,0.14016]
[1754233319338,0.4310985,113960.0,113950.0,0.14016]
[1754233321824,0.4310985,113960.0,113950.0,0.13516]
[1754233322009,0.4320985,113960.0,113950.0,0.13716]
[1754233322894,0.0920985,113960.0,113950.0,0.13716]
[1754233323922,0.0920985,113960.0,113950.0,0.13516]
[1754233323923,0.0910985,113960.0,113950.0,0.13516]
[1754233324274,0.0920985,113960.0,113950.0,0.13616]
[1754233324470,0.0920985,113960.0,113950.0,0.11916]
[1754233324683,0.4320985,113960.0,113950.0,0.001]
[1754233325531,0.4320985,113960.0,113940.0,0.156549]
[1754233325773,0.3567485,113960.0,113940.0,0.24565831]
[1754233325999,0.07535,113950.0,113940.0,0.24565831]
[1754233326202,0.41535,113950.0,113940.0,0.85088116]
[1754233326409,0.41535,113950.0,113940.0,0.24565831]
[1754233326619,0.41736,113950.0,113940.0,0.22626931]
[1754233327451,0.41736,113950.0,113940.0,0.22726931]
[1754233327869,0.07736,113950.0,113940.0,0.22626931]
[1754233328278,0.07836,113950.0,113940.0,0.22826931]
[1754233328490,0.07736,113950.0,113940.0,0.22626931]
[1754233328847,0.07836,113950.0,113940.0,0.22226931]
[1754233329053,0.21297009,113960.0,113940.0,0.22226931]
[1754233329260,3.869217,113960.0,113940.0,0.29549931]
[1754233329460,0.001,113950.0,113940.0,0.29549931]
[1754233330317,0.001,113950.0,113940.0,0.29449931]
[1754233330770,0.001,113950.0,113940.0,0.29549931]
[1754233331043,3.869217,113960.0,113940.0,0.29449931]
[1754233331321,0.07776,113950.0,113940.0,0.29449931]
[1754233331511,0.07876,113950.0,113940.0,0.29649931]
[1754233331686,0.07876,113950.0,113940.0,0.25249931]
[1754233332455,0.07876,113950.0,113940.0,0.25149931]
[1754233332678,0.07976,113950.0,113940.0,0.24349931]
[1754233334504,0.09349927,113950.0,113940.0,0.24349931]
[1754233335997,0.07976,113950.0,113940.0,0.23849931]
[1754233336447,0.08474,113950.0,113940.0,0.22891931]
[1754233337531,0.08474,113950.0,113940.0,0.14028647]
[1754233338739,0.08474,113950.0,113940.0,0.09628647]
[1754233339119,0.08474,113950.0,113940.0,0.0984806]
[1754233339757,0.08474,113950.0,113940.0,0.0904806]
[1754233339963,0.08474,113950.0,113940.0,0.1703306]
[1754233340795,0.08474,113950.0,113940.0,0.1673306]
[1754233341237,0.08474,113950.0,113940.0,0.0895206]
[1754233341453,0.08474,113950.0,113940.0,0.08528647]
[1754233342079,0.08474,113950.0,113930.0,0.68303285]
[1754233342296,0.08474,113950.0,113940.0,0.13668]
[1754233342297,0.08222625,113950.0,113940.0,0.13668]
[1754233342925,0.08521625,113950.0,113940.0,0.13168]
[1754233343150,0.08421625,113950.0,113940.0,0.13168]
[1754233343405,0.08421625,113950.0,113930.0,0.16644284]
[1754233343649,0.00299,113940.0,113930.0,0.16644284]
[1754233343879,0.08274,113940.0,113930.0,0.13664]
[1754233344087,0.42274,113940.0,113930.0,0.13664]
[1754233344534,0.44531028,113940.0,113930.0,0.13664]
[1754233344976,0.44631028,113940.0,113930.0,0.13864]
[1754233346338,0.44631028,113940.0,113930.0,0.13964]
[1754233346787,0.44631028,113940.0,113930.0,0.13164]
[1754233347039,0.44631028,113940.0,113930.0,0.08764]
[1754233347264,0.44631028,113940.0,113930.0,0.16749]
[1754233347758,0.44631028,113940.0,113930.0,0.08968]
[1754233347989,0.44631028,113940.0,113930.0,0.08764]
[1754233349353,0.44631028,113940.0,113930.0,0.003]
[1754233350307,0.46005107,113940.0,113930.0,0.003]
[1754233350532,0.46005107,113940.0,113920.0,0.81763285]
[1754233350756,0.08075,113930.0,113920.0,0.90626569]
[1754233350993,0.08274,113930.0,113920.0,0.22523284]
[1754233351681,0.08274,113930.0,113920.0,0.22519284]
[1754233351921,0.08274,113930.0,113920.0,0.13656]
[1754233352165,0.08274,113930.0,113910.0,0.0004]
[1754233352357,0.08374,113930.0,113920.0,0.003]
[1754233352653,0.2203,113930.0,113920.0,0.003]
[1754233352866,0.58890538,113930.0,113920.0,0.003]
[1754233353082,4.45712238,113930.0,113920.0,0.001]
[1754233353789,3.869217,113920.0,113900.0,0.20829]
[1754233354046,3.949967,113920.0,113900.0,0.29692284]
[1754233354258,0.08075,113920.0,113900.0,0.22527284]
[1754233354474,0.07776,113910.0,113900.0,0.22527284]
[1754233354687,0.07776,113910.0,113900.0,0.22731284]
[1754233355345,0.07776,113910.0,113900.0,0.83353569]
[1754233355549,0.07776,113910.0,113900.0,0.83253569]
[1754233355770,0.08274,113910.0,113900.0,0.83261948]
[1754233355988,0.08474,113910.0,113900.0,0.22839663]
[1754233356898,0.08574,113910.0,113900.0,0.22839663]
[1754233357342,0.11434538,113910.0,113900.0,0.13772379]
[1754233357561,0.11434538,113910.0,113900.0,0.13272379]
[1754233358651,0.45434538,113910.0,113900.0,0.00108379]
[1754233358875,0.59106538,113910.0,113900.0,0.00108379]
[1754233360810,0.60481008,113910.0,113890.0,0.13020379]
[1754233361029,0.52406008,113910.0,113890.0,0.13020379]
[1754233361255,0.52406008,113910.0,113880.0,0.68178525]
[1754233361256,0.07728,113900.0,113880.0,0.79154525]
[1754233361520,0.07728,113900.0,113880.0,0.88017809]
[1754233361979,0.07926,113900.0,113890.0,0.00296]
[1754233362427,0.07926,113900.0,113890.0,0.00196]
[1754233362630,0.08026,113900.0,113890.0,0.00196]
[1754233362864,0.08026,113900.0,113880.0,0.88503809]
[1754233362865,0.08026,113900.0,113880.0,0.88199809]
[1754233363077,0.08026,113900.0,113880.0,0.87913809]
[1754233363717,0.08026,113900.0,113890.0,0.60666285]
[1754233364102,0.07828,113900.0,113890.0,0.00144]
[1754233364352,0.07928,113900.0,113890.0,0.60666285]
[1754233364558,0.07928,113900.0,113890.0,0.60166285]
[1754233364559,0.001,113900.0,113890.0,0.60166285]
[1754233364721,0.59635008,113910.0,113890.0,0.60166285]
[1754233364916,0.002,113900.0,113890.0,0.64846285]
[1754233365119,0.003,113900.0,113890.0,0.64846285]
[1754233365513,0.003,113900.0,113890.0,0.001]
[1754233365718,0.07828,113900.0,113880.0,0.87641569]
[1754233365923,0.07828,113900.0,113890.0,0.001]
[1754233366331,0.07828,113900.0,113880.0,0.87641569]
[1754233366532,0.07728,113900.0,113890.0,0.60522285]
[1754233367087,0.07728,113900.0,113890.0,0.60622285]
[1754233367284,0.07728,113900.0,113890.0,0.001]
[1754233367614,0.07728,113900.0,113890.0,0.60522285]
[1754233367851,0.003,113900.0,113890.0,0.59822285]
[1754233368076,0.003,113900.0,113890.0,0.73265569]
[1754233368299,0.003,113900.0,113890.0,0.13543284]
[1754233368519,0.003,113900.0,113890.0,0.74285079]
[1754233368764,0.003,113900.0,113890.0,0.74065569]
[1754233371566,0.003,113900.0,113890.0,0.73565569]
[1754233373140,0.003,113900.0,113890.0,0.13043284]
[1754233373345,0.003,113900.0,113890.0,0.73785079]
[1754233373550,0.0167443,113900.0,113890.0,0.73565569]
[1754233374800,0.003,113900.0,113890.0,0.73065569]
[1754233375008,0.003,113900.0,113890.0,0.72265569]
[1754233375484,0.003,113900.0,113890.0,0.67865569]
[1754233377392,0.003,113900.0,113890.0,0.07343284]
[1754233377611,0.003,113900.0,113890.0,0.68085079]
[1754233377843,0.07721,113900.0,113890.0,0.67865569]
[1754233378717,0.07721,113900.0,113890.0,0.67365569]
[1754233379184,0.07721,113900.0,113890.0,0.06843284]
[1754233379430,0.07721,113900.0,113890.0,0.67585079]
[1754233379660,0.07721,113900.0,113890.0,0.67365569]
[1754233380081,0.07721,113900.0,113890.0,0.06843284]
[1754233380283,0.07721,113900.0,113890.0,0.67585079]
[1754233380540,0.07721,113900.0,113890.0,0.67365569]
[1754233381988,0.07721,113900.0,113890.0,0.06043284]
[1754233382199,0.07721,113900.0,113890.0,0.66785079]
[1754233382401,0.09095447,113900.0,113890.0,0.64465569]
[1754233382841,0.09095447,113900.0,113890.0,0.03943284]
[1754233383062,0.09095447,113900.0,113890.0,0.64685079]
[1754233383328,0.07721,113900.0,113890.0,0.64465569]
[1754233384891,0.07721,113900.0,113890.0,0.03943284]
[1754233385107,0.07721,113900.0,113890.0,0.64685079]
[1754233385318,0.07721,113900.0,113890.0,0.64465569]
[1754233385998,0.08028,113900.0,113890.0,0.64465569]
[1754233386214,0.08028,113900.0,113890.0,0.63965569]
[1754233386895,0.08028,113900.0,113890.0,0.66605669]
[1754233389055,0.08028,113900.0,113890.0,0.65805669]
[1754233389460,0.08028,113900.0,113890.0,0.61405669]
[1754233389662,0.08028,113900.0,113890.0,0.026401]
[1754233389861,0.08028,113900.0,113890.0,0.63381895]
[1754233390129,0.08028,113900.0,113890.0,0.63162385]
[1754233390729,0.003,113900.0,113890.0,0.72025669]
[1754233393277,0.1366,113920.0,113890.0,0.71525669]
[1754233393454,0.0164503,113920.0,113900.0,0.74401775]
[1754233393654,0.00207,113910.0,113900.0,0.74377285]
[1754233395082,0.343,113920.0,113900.0,0.74377285]
[1754233395287,0.35944739,113920.0,113910.0,0.60522285]
[1754233395496,0.36168739,113920.0,113910.0,0.60522285]
[1754233395725,0.36568739,113920.0,113910.0,0.60522285]
[1754233395927,0.36168739,113920.0,113900.0,0.1376]
[1754233396105,0.36168739,113920.0,113910.0,0.60522285]
[1754233396309,0.36568739,113920.0,113910.0,0.59722285]
[1754233396531,0.36168739,113920.0,113910.0,0.59722285]
[1754233396734,0.43889739,113920.0,113910.0,0.55422285]
[1754233396950,0.44189739,113920.0,113910.0,0.55522285]
[1754233397359,0.42545,113920.0,113910.0,0.55522285]
[1754233398513,0.42545,113920.0,113910.0,0.60722285]
[1754233400080,0.43919341,113920.0,113910.0,0.60722285]
[1754233400205,0.42545,113920.0,113910.0,0.002]
[1754233400403,0.42545,113920.0,113910.0,0.60522285]
[1754233400617,0.42545,113920.0,113910.0,0.68098671]
[1754233400842,0.006,113920.0,113910.0,1.36392342]
[1754233401043,0.006,113920.0,113910.0,1.52886626]
[1754233402152,0.006,113920.0,113910.0,0.16689284]
[1754233402358,0.006,113920.0,113910.0,1.53106097]
[1754233402562,0.003,113920.0,113910.0,1.52886626]
[1754233402770,0.41421,113930.0,113910.0,0.77203662]
[1754233403039,0.41738,113930.0,113920.0,0.7440183]
[1754233403173,0.41738,113930.0,113920.0,0.73577378]
[1754233403596,0.41738,113930.0,113920.0,0.69177378]
[1754233403780,0.07738,113930.0,113920.0,0.69177378]
[1754233404293,0.08038,113930.0,113920.0,0.69277378]
[1754233404947,0.08038,113930.0,113920.0,0.71916878]
[1754233405620,0.07821,113930.0,113920.0,0.71916878]
[1754233406057,0.07721,113930.0,113920.0,0.71916878]
[1754233406259,0.07721,113930.0,113920.0,0.114025]
[1754233406501,0.08028,113930.0,113920.0,0.7213633]
[1754233406654,0.08345,113930.0,113920.0,0.71916878]
[1754233406817,0.08345,113930.0,113920.0,0.114025]
[1754233407022,0.08345,113930.0,113920.0,0.7213633]
[1754233407267,0.08345,113930.0,113920.0,0.71916878]
[1754233407473,0.08345,113930.0,113920.0,0.71416878]
[1754233408452,0.08345,113930.0,113920.0,0.164315]
[1754233408661,0.08345,113930.0,113920.0,0.16650952]
[1754233410519,0.08345,113930.0,113920.0,0.7736033]
[1754233410723,0.08345,113930.0,113920.0,0.77140878]
[1754233410922,0.08345,113930.0,113920.0,0.76340878]
[1754233411332,0.08345,113930.0,113920.0,0.73340878]
[1754233411756,0.08345,113930.0,113920.0,0.128265]
[1754233411973,0.08345,113930.0,113920.0,0.7356033]
[1754233412182,0.08345,113930.0,113920.0,0.73340878]
[1754233414285,0.344,113930.0,113920.0,0.73340878]
[1754233414502,0.344,113930.0,113920.0,0.80471878]
[1754233414915,0.344,113930.0,113920.0,0.80208878]
[1754233415125,0.344,113930.0,113920.0,0.196945]
[1754233415328,0.41821,113930.0,113920.0,0.72840878]
[1754233416532,0.42138,113930.0,113920.0,0.72840878]
[1754233418040,0.344,113930.0,113920.0,0.89072162]
[1754233418256,0.344,113930.0,113920.0,0.88535162]
[1754233418466,0.344,113930.0,113920.0,1.4464954]
[1754233418467,0.004,113930.0,113920.0,1.4464954]
[1754233420192,0.004,113930.0,113920.0,0.23620784]
[1754233420406,0.004,113930.0,113920.0,1.4464954]
[1754233421526,0.004,113930.0,113920.0,1.4728864]
[1754233421751,0.004,113930.0,113920.0,1.4678864]
[1754233425252,0.004,113930.0,113920.0,1.4598864]
[1754233425659,0.004,113930.0,113920.0,1.4158864]
[1754233426493,0.004,113930.0,113920.0,0.81074262]
[1754233426750,0.004,113930.0,113920.0,0.80811262]
[1754233427519,0.004,113930.0,113920.0,0.81074262]
[1754233428703,0.004,113930.0,113920.0,0.80574262]
[1754233429609,0.004,113930.0,113920.0,0.80311262]
[1754233430202,0.004,113930.0,113920.0,1.4082564]
[1754233430860,0.004,113930.0,113920.0,1.4108864]
[1754233432189,0.004,113930.0,113920.0,1.5394864]
[1754233432475,0.004,113930.0,113920.0,1.55693542]
[1754233432655,0.004,113930.0,113920.0,1.51030542]
[1754233432857,0.004,113930.0,113920.0,0.98164216]
[1754233435994,0.004,113930.0,113920.0,0.97664216]
[1754233436425,0.004,113930.0,113920.0,1.24634216]
[1754233436859,0.22157415,113950.0,113920.0,1.24634216]
[1754233437116,0.01979745,113950.0,113940.0,0.6805443]
[1754233437354,0.02194745,113950.0,113940.0,0.90557714]
[1754233438092,0.02494745,113950.0,113940.0,0.90557714]
[1754233438375,0.00529281,113950.0,113940.0,0.90557714]
[1754233438651,0.00229281,113950.0,113940.0,0.90557714]
[1754233439172,0.07989281,113950.0,113940.0,0.90657714]
[1754233439408,0.08589281,113950.0,113940.0,0.89957714]
[1754233439633,0.00914281,113950.0,113940.0,1.58211144]
[1754233439837,0.00914281,113950.0,113940.0,1.63543144]
[1754233440045,0.00914281,113950.0,113940.0,0.30434284]
[1754233440255,0.00914281,113950.0,113940.0,1.66543144]
[1754233440689,0.00914281,113950.0,113940.0,0.90916811]
[1754233441113,0.60482527,113990.0,113940.0,0.90916811]
[1754233441323,0.60482527,113990.0,113950.0,0.74337921]
[1754233441324,5.05,113970.0,113950.0,0.74337921]
[1754233441554,0.00215,113960.0,113950.0,0.81650527]
[1754233443064,0.07675,113960.0,113950.0,0.81550527]
[1754233443291,0.0746,113970.0,113950.0,0.21367]
[1754233443526,0.0746,113970.0,113960.0,0.07532]
[1754233443758,0.07675,113970.0,113950.0,0.60901527]
[1754233443988,0.07675,113970.0,113960.0,0.13648]
[1754233444471,0.07975,113970.0,113960.0,0.13648]
[1754233445174,0.07675,113970.0,113960.0,0.13648]
[1754233445422,0.07975,113970.0,113960.0,0.13748]
[1754233445870,0.08075,113970.0,113960.0,0.13748]
[1754233446518,0.08075,113970.0,113960.0,0.12948]
[1754233446742,0.08075,113970.0,113960.0,0.08548]
[1754233447179,0.08075,113970.0,113960.0,0.001]
[1754233450971,0.08075,113970.0,113950.0,0.81589527]
[1754233451220,0.00926,113970.0,113960.0,0.00219375]
[1754233452349,0.00926,113970.0,113960.0,0.60917902]
[1754233452559,0.00926,113970.0,113960.0,0.60698527]
[1754233452560,0.00615,113970.0,113960.0,0.60698527]
[1754233452782,0.00315,113970.0,113960.0,0.60698527]
[1754233453059,0.00315,113970.0,113960.0,0.68499527]
[1754233453280,0.00089123,113980.0,113960.0,0.68499527]
[1754233453506,0.00089123,113980.0,113970.0,0.07801]
[1754233453723,0.00303123,113980.0,113970.0,0.21437]
[1754233453932,0.00303123,113980.0,113970.0,0.17037]
[1754233454139,0.00303123,113980.0,113970.0,0.16837]
[1754233454560,0.0207577,113980.0,113970.0,0.16837]
[1754233454993,0.00303123,113980.0,113970.0,0.16837]
[1754233455887,0.00315674,113980.0,113970.0,0.16837]
[1754233456102,0.00415674,113980.0,113970.0,0.16837]
[1754233456333,0.00515674,113980.0,113970.0,0.16837]
[1754233456633,0.00426551,113980.0,113970.0,0.17272355]
[1754233457134,0.00426551,113980.0,113970.0,0.17596355]
[1754233457151,0.00212551,113980.0,113970.0,0.17377]
[1754233457387,0.00212551,113980.0,113970.0,0.77859527]
[1754233457670,0.00112551,113980.0,113970.0,0.77859527]
[1754233457896,0.01883261,113980.0,113970.0,0.17377]
[1754233458087,0.00112551,113980.0,113970.0,0.16877]
[1754233458328,0.00012551,113980.0,113970.0,0.17096355]
[1754233458766,0.00226551,113980.0,113970.0,0.17096355]
[1754233460134,0.00326551,113980.0,113970.0,0.17096355]
[1754233460571,0.00326551,113980.0,113970.0,0.16296355]
[1754233460807,0.02105792,113980.0,113970.0,0.84322933]
[1754233461027,0.02005792,113980.0,113970.0,0.79703578]
[1754233461218,0.00226551,113980.0,113970.0,0.79803578]
[1754233461917,0.00226551,113980.0,113970.0,0.11777]
[1754233462143,0.00226551,113980.0,113970.0,0.79803578]
[1754233463007,0.019866,113980.0,113970.0,0.87604578]
[1754233463250,0.00226551,113980.0,113970.0,0.87604578]
[1754233463738,0.00226551,113980.0,113970.0,0.19578]
[1754233465113,0.00226551,113980.0,113970.0,0.19078]
[1754233467631,0.00226551,113980.0,113970.0,0.18278]
[1754233468046,0.00226551,113980.0,113970.0,0.13878]
[1754233468258,0.00226551,113980.0,113970.0,0.82123933]
[1754233468488,0.69400202,113990.0,113970.0,0.81904578]
[1754233468701,0.69400202,113990.0,113980.0,0.07801]
[1754233468910,0.69413202,113990.0,113980.0,0.07801]
[1754233469792,0.69513202,113990.0,113980.0,0.07801]
[1754233470297,0.69413202,113990.0,113980.0,0.07801]
[1754233470506,0.69513202,113990.0,113980.0,0.07801]
[1754233470738,0.69613202,113990.0,113970.0,0.13562]
[1754233471164,0.71393938,113990.0,113970.0,0.13781355]
[1754233471834,0.84603578,113980.0,113960.0,0.1364]
[1754233472096,0.68039578,113970.0,113960.0,0.13652551]
[1754233472279,0.68039578,113970.0,113960.0,0.00012551]
[1754233472494,0.68039578,113970.0,113960.0,0.07813551]
[1754233472921,0.68039578,113970.0,113960.0,0.08137551]
[1754233473346,0.00013,113970.0,113960.0,0.08337551]
[1754233473551,0.68039578,113970.0,113960.0,0.00212551]
[1754233473768,0.70968578,113970.0,113960.0,0.00212551]
[1754233473969,0.68039578,113970.0,113960.0,0.00212551]
[1754233474181,0.68039578,113970.0,113960.0,0.00512551]
[1754233474182,0.68139578,113970.0,113960.0,0.00512551]
[1754233474593,0.68139578,113970.0,113950.0,0.30340835]
[1754233474825,0.00113,113970.0,113950.0,0.30340835]
[1754233475229,0.00113,113970.0,113950.0,0.25940835]
[1754233475439,0.00113,113970.0,113950.0,0.18139835]
[1754233475649,0.00113,113970.0,113960.0,0.07801]
[1754233476524,0.67857239,113980.0,113960.0,0.07801]
[1754233476749,5.05,113970.0,113960.0,0.07801]
[1754233477429,0.001,113970.0,113960.0,0.08325]
[1754233477624,5.05,113970.0,113960.0,0.08325]
[1754233477867,5.051,113970.0,113960.0,0.08101]
[1754233478082,0.001,113970.0,113960.0,0.08101]
[1754233478719,0.001,113970.0,113960.0,0.08425]
[1754233479138,0.001,113970.0,113960.0,0.07925]
[1754233479348,0.0147375,113970.0,113960.0,0.07925]
[1754233480049,0.0147375,113970.0,113960.0,0.003]
[1754233480262,0.001,113970.0,113960.0,0.003]
[1754233480687,0.001,113970.0,113960.0,0.00624]
[1754233480913,0.001,113970.0,113960.0,0.00824]
[1754233481345,0.001,113970.0,113960.0,0.08831]
[1754233481768,0.001,113970.0,113960.0,0.08031]
[1754233482417,0.001,113970.0,113960.0,0.03731]
[1754233482652,5.05,113980.0,113960.0,0.03931]
[1754233482858,5.05,113980.0,113970.0,0.0031]
[1754233483070,5.05,113980.0,113970.0,0.0051]
[1754233483685,0.00214,113980.0,113970.0,0.0051]
[1754233484114,0.00314,113980.0,113970.0,0.0051]
[1754233484526,0.00314,113980.0,113970.0,0.08517]
[1754233485259,0.001,113980.0,113970.0,0.08517]
[1754233485699,0.003,113980.0,113970.0,0.08517]
[1754233486303,0.00514,113980.0,113970.0,0.08017]
[1754233486531,0.003,113980.0,113970.0,0.08017]
[1754233487977,0.003,113980.0,113970.0,0.08236355]
[1754233488195,0.003,113980.0,113970.0,0.22146355]
[1754233488391,0.003,113980.0,113970.0,0.21927]
[1754233488795,0.003,113980.0,113970.0,0.21127]
[1754233489002,0.003,113980.0,113970.0,0.21327]
[1754233489545,0.003,113980.0,113970.0,0.16927]
[1754233489746,0.003,113980.0,113970.0,0.17146355]
[1754233490792,5.05,113990.0,113970.0,0.17146355]
[1754233491003,5.05,113990.0,113980.0,0.08317]
[1754233491206,0.00214,113990.0,113980.0,0.08517]
[1754233492000,0.00414,113990.0,113980.0,0.08517]
[1754233492243,5.05,114010.0,113980.0,0.08617]
[1754233492457,5.05,113990.0,113980.0,0.08307]
[1754233493198,0.002,113990.0,113980.0,0.08617]
[1754233493401,0.002,113990.0,113980.0,0.68832239]
[1754233493597,0.002,113990.0,113980.0,0.68612903]
[1754233493811,0.03296854,113990.0,113980.0,0.68612903]
[1754233494031,0.002,113990.0,113980.0,0.08117]
[1754233494262,0.002,113990.0,113980.0,0.08336336]
[1754233494480,0.002,113990.0,113980.0,0.08117]
[1754233495872,0.00414,113990.0,113980.0,0.08117]
[1754233496090,0.00414,113990.0,113980.0,0.07317]
[1754233496549,0.00414,113990.0,113980.0,0.02917]
[1754233497428,0.03595334,113990.0,113980.0,0.02917]
[1754233498773,0.03595334,113990.0,113980.0,0.03136336]
[1754233499014,0.03381334,113990.0,113980.0,0.03136336]
[1754233500975,5.05,113990.0,113980.0,0.03136336]
[1754233501199,5.05,114000.0,113980.0,0.02636336]
[1754233501416,5.05,113990.0,113980.0,0.00829336]
[1754233501627,5.05,114000.0,113980.0,0.00519336]
[1754233502274,5.05,114000.0,113980.0,0.00829336]
[1754233502496,5.05,113990.0,113980.0,0.00729336]
[1754233502769,5.05,113990.0,113980.0,0.0051]
[1754233503017,5.05,113990.0,113970.0,0.73805903]
[1754233503254,0.00214,113990.0,113980.0,0.08207]
[1754233503683,0.00214,113990.0,113980.0,0.06107]
[1754233504679,0.00214,113990.0,113980.0,0.06207]
[1754233505218,5.73832903,113990.0,113980.0,0.13668]
[1754233505472,5.73832903,113990.0,113980.0,0.001]
[1754233508142,5.13337,113990.0,113980.0,0.001]
[1754233508408,5.05,113980.0,113970.0,0.40164299]
[1754233508666,5.05,113980.0,113970.0,0.1358]
[1754233508967,0.08337,113980.0,113970.0,0.1358]
[1754233509982,0.08337,113980.0,113970.0,0.20787]
[1754233510442,0.08337,113980.0,113970.0,0.1278]
[1754233510683,0.08337,113980.0,113970.0,0.13572]
[1754233510910,5.73832903,113980.0,113970.0,0.13572]
[1754233511375,5.05,113970.0,113960.0,0.18679]
[1754233511591,5.05214,113970.0,113960.0,0.19188]
[1754233511806,0.00214,113970.0,113960.0,0.19188]
[1754233512042,5.05,113970.0,113960.0,0.19188]
[1754233512532,5.05,113970.0,113960.0,0.19184]
[1754233512768,0.001,113970.0,113960.0,0.19484]
[1754233515032,0.001,113970.0,113960.0,0.79979903]
[1754233515241,0.001,113970.0,113960.0,0.79679903]
[1754233517308,0.001,113970.0,113960.0,0.78879903]
[1754233517517,0.001,113970.0,113960.0,0.18384]
[1754233517702,0.001,113970.0,113960.0,0.13984]
[1754233517956,0.001,113970.0,113960.0,0.14188]
[1754233519851,0.001,113970.0,113960.0,0.22167]
[1754233520482,0.00314,113970.0,113960.0,0.08683]
[1754233520720,0.08496,113970.0,113960.0,0.22239]
[1754233522312,0.08496,113970.0,113960.0,0.21739]
[1754233523394,0.08496,113970.0,113960.0,0.21535]
[1754233525211,0.08496,113970.0,113960.0,0.20735]
[1754233525449,0.08496,113970.0,113960.0,0.16335]